bitfinex-derivatives/quotes_ETHF0:USTF0_20250919
["timestamp","ask_amount","ask_price","bid_price","bid_amount"]
[1758321390782,0.3999,4476.8,4476.7,0.0223]
[1758321391087,1.42644854,4476.8,4476.7,0.224]
[1758321396589,1.4270609,4476.8,4476.7,0.224]
[1758321400688,1.4270609,4476.8,4476.7,0.7412]
[1758321403893,1.4270609,4476.8,4476.7,0.9449]
[1758321405594,1.42810109,4476.8,4476.7,0.9449]
[1758321406390,1.42810109,4476.8,4476.7,0.7209]
[1758321406593,1.42810109,4476.8,4476.7,0.9449]
[1758321407498,1.42810109,4476.8,4476.7,1.34673]
[1758321419505,1.44625991,4476.8,4476.7,1.34673]
[1758321420807,0.93485991,4476.8,4476.7,1.34673]
[1758321421007,0.73235991,4476.8,4476.7,1.34673]
[1758321422204,1.24235991,4476.8,4476.7,1.34673]
[1758321429413,1.45635991,4476.8,4476.7,0.91903]
[1758321429713,1.45635991,4476.8,4476.7,0.224]
[1758321431718,1.45635991,4476.8,4476.6,0.40184]
[1758321431918,1.45635991,4476.7,4476.6,0.40184]
[1758321432219,1.45635991,4476.7,4476.6,0.62584]
[1758321432422,1.45635991,4476.7,4476.6,1.13874]
[1758321446538,1.45635991,4476.7,4476.6,0.7369]
[1758321452847,1.45501573,4476.7,4476.6,0.7369]
[1758321453142,1.45501573,4476.7,4476.6,0.9505]
[1758321457249,1.45501573,4476.7,4476.6,1.35234]
[1758321459856,1.45501573,4476.7,4476.6,1.12834]
[1758321460055,1.45501573,4476.7,4476.6,1.35234]
[1758321472361,1.4571733,4476.7,4476.6,1.35234]
[1758321480564,0.7331733,4476.7,4476.6,1.35234]
[1758321480868,1.2303733,4476.7,4476.6,1.35234]
[1758321482771,1.4274733,4476.7,4476.6,1.35234]
[1758321487575,1.4274733,4476.7,4476.6,1.12834]
[1758321487770,0.3034,4476.6,4476.4,3.2301]
[1758321487969,1.5540733,4476.5,4476.4,0.01119124]
[1758321488171,0.6943,4475.8,4475.7,3.2078]
[1758321488369,1.4274733,4475.8,4475.7,3.4318]
[1758321488672,1.4274733,4475.8,4475.7,3.9485]
[1758321490581,1.4274733,4475.8,4475.7,3.7245]
[1758321490770,1.4274733,4475.8,4475.7,3.9485]
[1758321492771,1.42676756,4475.8,4475.7,3.9485]
[1758321494582,1.42676756,4475.8,4475.7,4.1439]
[1758321497588,1.42676756,4475.8,4475.7,0.9361]
[1758321499586,0.73246756,4475.8,4475.7,0.9361]
[1758321499994,0.22797501,4475.8,4475.7,5.15953]
[1758321501392,0.22290656,4475.8,4475.7,5.15953]
[1758321501781,0.22290656,4475.8,4475.7,4.9361]
[1758321502192,0.22290656,4475.8,4475.7,5.33803]
[1758321519294,0.22290656,4475.8,4475.7,1.33803]
[1758321526701,0.22290656,4475.8,4475.7,4.54583]
[1758321529497,0.5167,4476.2,4476.1,0.7928]
[1758321529704,1.24644133,4476.2,4476.1,1.3228]
[1758321531800,1.45144133,4476.2,4476.1,1.3228]
[1758321548017,1.45144133,4476.2,4476.1,0.6259]
[1758321548711,1.45144133,4476.2,4476.1,1.1236]
[1758321557528,1.45144133,4476.2,4476.1,0.8996]
[1758321557723,0.1999,4475.8,4475.7,3.63203]
[1758321558020,0.1999,4475.8,4475.7,4.33143]
[1758321558021,1.43734133,4475.8,4475.7,4.33143]
[1758321558722,0.93185733,4475.8,4475.7,4.33143]
[1758321558926,0.93185733,4475.8,4475.7,4.52963]
[1758321559123,0.73785733,4475.8,4475.7,4.52963]
[1758321559327,0.42415733,4475.8,4475.7,4.52963]
[1758321562129,0.22425733,4475.8,4475.7,4.52963]
[1758321562327,0.73936866,4476.0,4475.9,1.09781]
[1758321562523,1.24532377,4476.0,4475.9,1.32181]
[1758321565128,1.24532637,4476.0,4475.9,1.32181]
[1758321570830,1.43932637,4476.0,4475.9,1.32181]
[1758321572541,1.43932963,4476.0,4475.9,1.32181]
[1758321575931,1.23132963,4476.0,4475.9,1.09781]
[1758321576130,1.23132963,4476.0,4475.9,1.32181]
[1758321576435,0.22577429,4476.0,4475.9,1.32181]
[1758321584141,0.22577429,4476.0,4475.9,4.52961]
[1758321590938,0.22577429,4476.0,4475.9,1.32181]
[1758321591139,0.22577429,4476.0,4475.9,4.52961]
[1758321599245,0.1266,4477.0,4476.9,0.7134]
[1758321599246,0.1979,4477.0,4476.9,0.7134]
[1758321599439,0.1979,4477.0,4476.9,1.33922]
[1758321599641,1.21551961,4477.0,4476.9,1.33922]
[1758321600845,0.8344,4477.0,4476.9,1.33922]
[1758321601841,4.74997,4477.0,4476.8,3.2078]
[1758321602044,1.21521582,4476.9,4476.8,3.2078]
[1758321602346,1.43858582,4476.9,4476.8,3.4318]
[1758321602743,1.21521582,4476.9,4476.8,3.9412]
[1758321602942,1.21521582,4476.9,4476.8,4.1452]
[1758321604645,1.21521582,4476.9,4476.8,3.7172]
[1758321604843,1.21521582,4476.9,4476.8,3.9412]
[1758321605344,1.21521582,4476.9,4476.8,4.1452]
[1758321605542,1.21521582,4476.9,4476.8,0.9374]
[1758321605742,5.21521582,4476.9,4476.8,3.404]
[1758321605950,1.21521582,4476.9,4476.8,4.1452]
[1758321606845,0.50551582,4476.9,4476.8,4.1452]
[1758321607852,4.7097,4476.9,4476.8,3.2078]
[1758321608054,4.7097,4476.9,4476.6,0.0223]
[1758321608055,5.43859929,4476.9,4476.6,0.0223]
[1758321608252,0.3078,4476.7,4476.6,0.0223]
[1758321608452,1.21522929,4476.7,4476.6,0.2463]
[1758321608647,0.1979,4475.9,4475.8,3.2078]
[1758321608950,0.1979,4475.9,4475.8,3.4318]
[1758321608951,1.21522929,4475.9,4475.8,3.4318]
[1758321609351,0.70342929,4475.9,4475.8,4.1452]
[1758321609550,0.50552929,4475.9,4475.8,4.1452]
[1758321609750,0.70342929,4475.9,4475.8,4.1452]
[1758321610055,1.01122929,4475.9,4475.8,4.1452]
[1758321611252,0.92823118,4475.9,4475.8,4.1452]
[1758321613250,0.42270189,4475.9,4475.8,4.1452]
[1758321613654,0.73050189,4475.9,4475.8,4.1452]
[1758321614056,0.93450189,4475.9,4475.8,3.9212]
[1758321614355,0.93450189,4475.9,4475.8,3.4328]
[1758321614356,1.43834224,4475.9,4475.8,3.4328]
[1758321615153,0.3078,4475.8,4475.5,36.195]
[1758321615352,0.4019,4475.6,4475.5,36.195]
[1758321615557,1.43834224,4475.6,4475.5,36.42]
[1758321617255,1.43834224,4475.6,4475.5,36.7332]
[1758321618359,1.43834224,4475.6,4475.5,36.8615]
[1758321619154,1.43834224,4475.6,4475.5,1.0667]
[1758321620263,1.43834224,4475.6,4475.5,0.9384]
[1758321622264,0.92654224,4475.6,4475.5,1.0667]
[1758321622462,0.22480189,4475.6,4475.5,1.0667]
[1758321622959,0.3078,4475.9,4475.5,1.0667]
[1758321623165,0.3078,4475.7,4475.6,0.7134]
[1758321623360,1.22930332,4475.7,4475.6,0.7134]
[1758321623562,1.22930332,4475.7,4475.6,1.11533]
[1758321623763,1.43330332,4475.7,4475.6,0.7134]
[1758321624671,0.93020664,4475.7,4475.6,0.7134]
[1758321625466,0.93020664,4475.7,4475.6,0.9384]
[1758321627068,0.41838729,4475.7,4475.6,0.9384]
[1758321627470,0.41838729,4475.7,4475.6,0.7134]
[1758321627670,0.93018729,4475.7,4475.6,0.7334]
[1758321628261,0.93018729,4475.7,4475.6,0.9374]
[1758321632472,0.72618729,4475.7,4475.6,0.9374]
[1758321632670,0.93488729,4475.7,4475.6,0.9374]
[1758321635072,0.93511521,4475.7,4475.6,0.9374]
[1758321635271,1.43871599,4475.7,4475.6,0.9374]
[1758321641076,1.43871599,4475.7,4475.6,0.7334]
[1758321641572,1.43871599,4475.7,4475.6,0.4202]
[1758321642172,1.43871599,4475.7,4475.6,0.82214]
[1758321642974,1.43871599,4475.7,4475.6,0.224]
[1758321643174,1.43871599,4475.7,4475.6,0.62594]
[1758321644777,1.43871599,4475.7,4475.6,1.14354]
[1758321644975,0.6984,4475.6,4475.5,0.91954]
[1758321645168,1.42271599,4475.6,4475.5,1.14354]
[1758321646078,1.42271599,4475.6,4475.5,1.35764]
[1758321651668,1.42271599,4475.6,4475.5,0.82284]
[1758321652380,1.42271599,4475.6,4475.5,1.14354]
[1758321654172,0.4142,4475.5,4475.3,0.3207]
[1758321654379,0.4142,4475.5,4475.2,4.12737]
[1758321654380,0.6984,4475.3,4475.2,4.12737]
[1758321654580,1.42271599,4475.3,4475.2,4.56547]
[1758321659888,1.42271599,4475.3,4475.2,4.1635]
[1758321660488,1.42271599,4475.3,4475.2,3.9395]
[1758321660789,1.42271599,4475.3,4475.2,4.1635]
[1758321662391,0.72431599,4475.3,4475.2,4.1635]
[1758321667693,0.22071521,4475.3,4475.2,8.38695]
[1758321667893,0.502,4476.3,4476.2,0.7184]
[1758321668095,1.22708958,4476.3,4476.2,0.9424]
[1758321668391,1.42818958,4476.3,4476.2,0.9424]
[1758321669397,1.42818958,4476.3,4476.2,0.744]
[1758321670199,1.13368958,4476.3,4475.9,3.5162]
[1758321670499,0.8319,4476.0,4475.9,0.92191]
[1758321670699,1.55698958,4476.0,4475.9,1.14591]
[1758321670999,1.55698958,4476.0,4475.9,1.34431]
[1758321675100,1.55698958,4476.0,4475.9,0.224]
[1758321676005,1.26248958,4476.0,4475.9,0.224]
[1758321676706,1.56585591,4476.0,4475.9,0.224]
[1758321677005,1.56585591,4476.0,4475.9,0.62591]
[1758321677504,1.56585591,4476.0,4475.9,0.92191]
[1758321677706,1.56585591,4476.0,4475.9,1.14591]
[1758321678708,1.56585591,4476.0,4475.9,0.224]
[1758321679403,1.56585591,4476.0,4475.9,0.62591]
[1758321683603,1.56585591,4476.0,4475.9,1.14591]
[1758321683911,1.56585591,4476.0,4475.9,0.744]
[1758321684113,1.56585591,4476.0,4475.9,0.4356]
[1758321684516,1.56585591,4476.0,4475.9,0.224]
[1758321684917,1.56585591,4476.0,4475.6,0.0223]
[1758321685210,0.7031,4475.7,4475.6,0.2463]
[1758321685407,1.43705591,4475.7,4475.6,0.2463]
[1758321686016,1.43705591,4475.7,4475.6,0.224]
[1758321686415,1.14255591,4475.7,4475.2,0.40197]
[1758321686714,0.7031,4475.3,4475.2,0.92197]
[1758321686915,1.43705591,4475.3,4475.2,1.14597]
[1758321687310,1.43705591,4475.3,4475.2,0.92197]
[1758321687511,1.43705591,4475.3,4475.2,1.14597]
[1758321689816,1.43705591,4475.3,4475.2,0.744]
[1758321691119,1.14255591,4475.3,4475.2,0.224]
[1758321691718,1.46385591,4475.3,4475.2,0.224]
[1758321692218,1.46385591,4475.3,4475.2,0.5333]
[1758321692416,1.46385591,4475.3,4475.2,0.7315]
[1758321694917,1.46385591,4475.3,4475.1,0.40198]
[1758321695117,0.7299,4475.3,4475.2,0.9431]
[1758321695324,1.44767529,4475.3,4475.2,0.9431]
[1758321696717,1.44767529,4475.3,4475.2,0.7315]
[1758321697626,1.44761355,4475.3,4475.2,0.7315]
[1758321698524,1.44761355,4475.3,4475.2,0.224]
[1758321703619,0.3213,4475.2,4475.0,3.2301]
[1758321703922,0.7373,4475.2,4475.1,0.224]
[1758321704123,1.4510161,4475.2,4475.1,0.7315]
[1758321705725,1.45103855,4475.2,4475.1,0.7315]
[1758321708532,1.45103855,4475.2,4475.1,0.224]
[1758321709931,1.45103855,4475.2,4475.0,0.0223]
[1758321710126,1.12973855,4475.1,4475.0,0.0223]
[1758321710326,0.71373855,4475.1,4475.0,1.0921]
[1758321710535,0.71373855,4475.1,4475.0,4.2776]
[1758321714533,1.23663855,4475.1,4475.0,4.2776]
[1758321718044,1.23663855,4475.1,4475.0,4.0536]
[1758321718340,1.45103855,4475.1,4475.0,0.1982]
[1758321718540,1.45103855,4475.1,4475.0,0.224]
[1758321719137,0.8428,4475.0,4474.9,3.2078]
[1758321719341,1.55653855,4475.0,4474.9,3.4318]
[1758321719543,1.55653855,4475.0,4474.9,3.6334]
[1758321719742,1.55653855,4475.0,4474.9,3.9243]
[1758321720939,1.55653855,4475.0,4474.9,4.1353]
[1758321721139,1.55753941,4475.0,4474.9,4.1353]
[1758321721743,1.55753941,4475.0,4474.9,0.9275]
[1758321725747,1.43393941,4475.0,4474.9,0.9275]
[1758321726841,1.43393941,4475.0,4474.9,0.7035]
[1758321727237,1.26453941,4475.0,4474.9,0.224]
[1758321727748,1.57123941,4475.0,4474.9,0.224]
[1758321728144,1.57123941,4475.0,4474.9,0.73]
[1758321730642,1.57123941,4475.0,4474.9,0.941]
[1758321733049,1.57123941,4475.0,4474.9,1.343]
[1758321737750,1.57123941,4475.0,4474.9,0.941]
[1758321738856,1.57123941,4475.0,4474.9,1.343]
[1758321740153,1.57123941,4475.0,4474.9,1.119]
[1758321740358,1.57123941,4475.0,4474.9,1.343]
[1758321740862,1.57123941,4475.0,4474.9,0.941]
[1758321741063,1.57123941,4475.0,4474.9,1.343]
[1758321741860,1.57123941,4475.0,4474.9,0.941]
[1758321742760,1.57123941,4475.0,4474.9,1.343]
[1758321744059,1.57123941,4475.0,4474.9,0.941]
[1758321745661,1.57123941,4475.0,4474.9,0.717]
[1758321745856,1.57123941,4475.0,4474.9,0.941]
[1758321746763,1.57123941,4475.0,4474.9,0.224]
[1758321747061,1.79470941,4475.0,4474.9,0.224]
[1758321747654,1.57065934,4475.0,4474.9,0.73]
[1758321747951,1.57065934,4475.0,4474.9,0.941]
[1758321748159,1.44425934,4475.0,4474.9,0.941]
[1758321749259,1.57035934,4475.0,4474.9,0.941]
[1758321750063,1.44425934,4475.0,4474.9,0.941]
[1758321750562,1.44425934,4475.0,4474.9,0.717]
[1758321750865,1.57035934,4475.0,4474.9,0.941]
[1758321751866,1.57035934,4475.0,4474.9,0.717]
[1758321752162,1.44425934,4475.0,4474.9,0.941]
[1758321756070,1.57035934,4475.0,4474.9,0.941]
[1758321757459,1.57007065,4475.0,4474.9,0.941]
[1758321760460,1.44397065,4475.0,4474.9,0.941]
[1758321761570,0.71387065,4475.0,4474.9,0.941]
[1758321763978,1.23877065,4475.0,4474.9,0.941]
[1758321764570,1.23877065,4475.0,4474.9,0.717]
[1758321764777,1.23877065,4475.0,4474.9,0.941]
[1758321764778,1.56897065,4475.0,4474.9,0.941]
[1758321765273,1.56897065,4475.0,4474.9,0.4391]
[1758321765472,1.56897065,4475.0,4474.9,0.7397]
[1758321766675,1.56897065,4475.0,4474.9,0.5157]
[1758321766875,0.729,4474.8,4474.7,0.63262]
[1758321767076,1.44287065,4474.8,4474.7,0.85662]
[1758321767275,1.44287065,4474.8,4474.7,0.83432]
[1758321767475,1.44287065,4474.8,4474.7,1.13492]
[1758321768570,1.44287065,4474.8,4474.7,0.7329]
[1758321768776,1.44287065,4474.8,4474.7,0.4323]
[1758321768978,1.44287065,4474.8,4474.7,0.224]
[1758321771475,1.13297065,4474.8,4474.7,0.224]
[1758321771676,1.44287065,4474.8,4474.7,0.224]
[1758321771979,1.13297065,4474.8,4474.5,0.72494]
[1758321772279,1.44287065,4474.7,4474.6,0.5246]
[1758321772471,1.44287065,4474.7,4474.6,0.7329]
[1758321773778,1.44287065,4474.7,4474.6,0.224]
[1758321776674,1.44287065,4474.7,4474.5,0.0223]
[1758321776880,1.44287065,4474.6,4474.5,0.2463]
[1758321777279,1.44287065,4474.6,4474.5,0.224]
[1758321781979,1.44287065,4474.6,4474.5,0.5213]
[1758321782279,1.44287065,4474.6,4474.5,0.7189]
[1758321782782,0.71387065,4474.6,4474.5,1.0586]
[1758321784085,1.22817065,4474.6,4474.5,1.0586]
[1758321785684,0.92657065,4474.6,4474.5,1.0586]
[1758321786784,1.22817065,4474.6,4474.5,0.8346]
[1758321786986,1.22817065,4474.6,4474.5,1.0586]
[1758321787889,1.43377065,4474.6,4474.5,0.9303]
[1758321788886,1.43377065,4474.6,4474.5,0.7063]
[1758321789186,1.43377065,4474.6,4474.5,0.9303]
[1758321791087,1.43366566,4474.6,4474.5,0.7063]
[1758321791289,1.43366566,4474.6,4474.5,0.9303]
[1758321792290,1.43366566,4474.6,4474.5,0.7063]
[1758321792491,1.43366566,4474.6,4474.5,0.9303]
[1758321794289,1.43366566,4474.6,4474.5,0.4216]
[1758321794693,1.43366566,4474.6,4474.5,0.224]
[1758321795993,1.43563505,4474.6,4474.5,0.224]
[1758321797602,0.4183,4474.4,4474.3,0.5172]
[1758321797894,1.43563505,4474.4,4474.3,0.7189]
[1758321798096,1.43563505,4474.4,4474.3,0.224]
[1758321798497,1.43563505,4474.4,4474.3,0.7189]
[1758321799999,1.43563505,4474.4,4474.3,1.12096]
[1758321801700,1.43563505,4474.4,4474.3,1.33236]
[1758321803902,1.43563505,4474.4,4474.3,0.9303]
[1758321804403,1.43563505,4474.4,4474.3,1.33236]
[1758321807003,1.43585957,4474.4,4474.3,1.33236]
[1758321807206,1.43585957,4474.4,4474.3,0.9303]
[1758321808094,1.43585957,4474.4,4474.3,1.33236]
[1758321809306,1.43585957,4474.4,4474.3,0.9303]
[1758321812402,1.43585957,4474.4,4474.3,0.7189]
[1758321815604,1.43585957,4474.4,4474.1,3.2301]
[1758321815809,1.45565957,4474.3,4474.2,0.224]
[1758321816009,1.45565957,4474.3,4474.2,0.741]
[1758321817616,1.45565957,4474.3,4474.2,1.14307]
[1758321818313,1.45565957,4474.3,4474.2,0.91907]
[1758321818519,1.45565957,4474.3,4474.2,0.741]
[1758321827023,1.45565957,4474.3,4474.2,0.224]
[1758321827825,1.45565957,4474.3,4474.1,3.2078]
[1758321828024,1.45565957,4474.2,4474.0,0.0223]
[1758321828212,1.13905957,4474.1,4474.0,0.0223]
[1758321828417,1.45565957,4474.1,4474.0,0.2463]
[1758321828619,1.45565957,4474.1,4474.0,0.741]
[1758321832729,1.45565957,4474.1,4474.0,0.9414]
[1758321837540,1.45565957,4474.1,4474.0,1.0675]
[1758321838139,0.71595957,4474.1,4474.0,1.46959]
[1758321844242,1.23815957,4474.1,4474.0,1.46959]
[1758321844442,1.23815957,4474.1,4474.0,1.24559]
[1758321844645,1.44655957,4474.1,4474.0,1.46959]
[1758321845442,1.44655957,4474.1,4474.0,0.9414]
[1758321848048,1.44655957,4474.1,4474.0,1.34349]
[1758321849642,1.44655957,4474.1,4474.0,1.11949]
[1758321849843,1.44655957,4474.1,4474.0,1.34349]
[1758321852054,1.44655957,4474.1,4474.0,0.62609]
[1758321854346,1.44655957,4474.1,4474.0,0.94099]
[1758321854752,1.44655957,4474.1,4474.0,0.62609]
[1758321855751,0.1237,4474.0,4473.9,3.2078]
[1758321855956,1.57025957,4474.0,4473.9,3.4318]
[1758321858159,1.57025957,4474.0,4473.9,3.7467]
[1758321859153,1.57025957,4474.0,4473.9,3.9436]
[1758321859857,1.57025957,4474.0,4473.9,3.4318]
[1758321860053,1.57025957,4474.0,4473.9,3.2078]
[1758321860358,1.57025957,4474.0,4473.9,3.4318]
[1758321862858,1.57025957,4474.0,4473.9,3.7467]
[1758321863560,1.57025957,4474.0,4473.9,3.9436]
[1758321873171,1.57025957,4474.0,4473.9,0.1969]
[1758321873468,1.57025957,4474.0,4473.8,0.224]
[1758321873669,1.44225957,4473.9,4473.8,0.224]
[1758321875368,1.44225957,4473.9,4473.7,0.2463]
[1758321875565,1.44225957,4473.8,4473.7,0.2463]
[1758321875966,1.44225957,4473.8,4473.7,0.224]
[1758321878670,1.44225957,4473.8,4473.5,0.3037]
[1758321878872,0.7263,4473.6,4473.5,0.5094]
[1758321879071,1.44225957,4473.6,4473.5,0.5094]
[1758321879670,1.44225957,4473.6,4473.5,0.2057]
[1758321879867,0.4234,4473.4,4473.3,0.0223]
[1758321880072,1.13935957,4473.4,4473.3,0.5317]
[1758321880373,1.44225957,4473.4,4473.3,0.5317]
[1758321880570,1.44263287,4473.4,4473.3,0.5317]
[1758321882876,1.44263287,4473.4,4473.3,0.228]
[1758321883175,1.44263287,4473.4,4473.3,0.2057]
[1758321883574,1.44263287,4473.4,4473.1,0.224]
[1758321883777,0.7263,4473.2,4473.1,0.7334]
[1758321883971,1.44263287,4473.2,4473.1,0.7334]
[1758321885579,1.44263287,4473.2,4473.1,0.9309]
[1758321893775,0.71633287,4473.2,4473.1,0.9309]
[1758321893981,1.23183287,4473.2,4473.1,0.9309]
[1758321894283,1.44263287,4473.2,4473.1,0.9309]
[1758321900987,1.44308466,4473.2,4473.1,0.9309]
[1758321902186,1.23228466,4473.2,4473.1,0.9309]
[1758321902388,0.92938466,4473.2,4473.1,0.9309]
[1758321902791,1.22688466,4473.2,4473.1,0.9309]
[1758321902990,1.44128466,4473.2,4473.1,0.9309]
[1758321905985,1.44128466,4473.2,4472.9,3.2301]
[1758321906191,0.7191,4473.0,4472.9,3.736]
[1758321906388,1.43588466,4473.0,4472.9,4.174]
[1758321906585,1.43588466,4473.0,4472.9,4.1517]
[1758321910188,1.43627052,4473.0,4472.9,4.1517]
[1758321910891,0.71717052,4473.0,4472.9,4.1517]
[1758321912295,0.71717346,4473.0,4472.9,4.1517]
[1758321916297,0.71751206,4473.0,4472.9,4.1517]
[1758321923504,0.71751206,4473.0,4472.9,4.55389]
[1758321928301,0.22933686,4473.0,4472.9,8.77746]
[1758321928510,0.2975,4474.1,4473.7,0.40211]
[1758321928708,3.2078,4474.3,4473.7,0.40211]
[1758321928709,1.00723163,4474.0,4473.9,0.7275]
[1758321929007,1.00723163,4474.0,4473.9,0.9515]
[1758321930107,1.32903163,4474.0,4473.9,0.9515]
[1758321931004,1.32903163,4474.0,4473.9,4.1593]
[1758321931206,1.32903163,4474.0,4473.9,0.6401]
[1758321931410,1.32903163,4474.0,4473.9,0.4268]
[1758321932215,1.32903163,4474.0,4473.6,0.40212]
[1758321932216,0.4117,4473.7,4473.6,0.40212]
[1758321932412,1.20403163,4473.7,4473.6,0.62612]
[1758321932615,1.20403163,4473.7,4473.6,0.224]
[1758321933106,1.20403163,4473.7,4473.4,0.0223]
[1758321933306,0.3399,4473.5,4473.4,0.0223]
[1758321933515,1.32903163,4473.5,4473.4,0.2463]
[1758321935110,1.32903163,4473.5,4473.4,0.224]
[1758321935816,0.7131,4473.4,4472.8,0.71359]
[1758321936020,0.8381,4473.0,4472.9,0.4268]
[1758321936318,1.32903163,4473.0,4472.9,0.4268]
[1758321938721,1.32903163,4473.0,4472.9,0.9515]
[1758321940520,1.55895075,4473.0,4472.9,0.9515]
[1758321943820,1.55895075,4473.0,4472.9,0.6401]
[1758321947724,1.55895075,4473.0,4472.9,0.9515]
[1758321949330,1.55895075,4473.0,4472.9,1.35369]
[1758321950928,1.06801912,4473.0,4472.9,1.35369]
[1758321952628,1.54819515,4473.0,4472.9,1.35369]
[1758321959237,1.06801912,4473.0,4472.9,1.35369]
[1758321959437,1.54826628,4473.0,4472.9,1.35369]
[1758321960031,1.42326628,4473.0,4472.9,1.35369]
[1758321960237,0.74621912,4473.0,4472.9,1.35369]
[1758321960734,1.22653841,4473.0,4472.9,1.35369]
[1758321961640,0.71023841,4473.0,4472.9,1.57726]
[1758321961841,0.71023841,4473.0,4472.9,1.35369]
[1758321962842,0.71023841,4473.0,4472.9,1.57726]
[1758321963035,0.22991912,4473.0,4472.9,5.57726]
[1758321964844,0.22991912,4473.0,4472.9,5.35369]
[1758321966947,0.5017,4473.6,4473.5,1.12713]
[1758321967149,0.72015738,4473.6,4473.5,4.55893]
[1758321970447,0.93455738,4473.6,4473.5,4.55893]
[1758321982853,0.9304784,4473.6,4473.5,4.55893]
[1758321988355,1.41027929,4473.6,4473.5,4.55893]
[1758321990759,1.41050463,4473.6,4473.5,4.55893]
[1758321993866,1.41050463,4473.6,4473.5,1.35113]
[1758321994066,1.41050463,4473.6,4473.5,4.55893]
[1758321994268,1.19610463,4473.6,4473.5,4.55893]
[1758321995867,0.69440463,4473.6,4473.5,4.61133]
[1758321996859,0.181443,4473.6,4473.5,8.83487]
[1758321997062,0.213,4474.7,4474.6,0.1983]
[1758321997269,0.90690924,4474.7,4474.6,0.9215]
[1758321997671,1.21150924,4474.7,4474.6,0.9215]
[1758321998758,0.78500924,4474.7,4474.6,0.9215]
[1758321998962,0.99800924,4474.7,4474.6,0.9215]
[1758321999171,1.21150924,4474.7,4474.6,0.9215]
[1758322001865,0.7311,4474.7,4474.6,0.9215]
[1758322002266,1.20919537,4474.7,4474.6,0.9215]
[1758322002567,0.7311,4474.7,4474.6,0.9215]
[1758322005671,0.7311,4474.7,4474.6,0.224]
[1758322007073,0.7311,4474.7,4474.6,0.418]
[1758322008873,0.94608561,4474.7,4474.6,0.418]
[1758322012269,0.94608561,4474.7,4474.6,0.9215]
[1758322012676,0.94608561,4474.7,4474.6,0.6163]
[1758322014279,0.94608561,4474.7,4474.6,0.418]
[1758322016678,0.94608561,4474.7,4474.6,0.224]
[1758322019780,0.94608561,4474.7,4474.6,0.418]
[1758322020079,0.94608561,4474.7,4474.6,0.82003]
[1758322020583,0.94608561,4474.7,4474.6,1.13913]
[1758322021384,1.42408565,4474.7,4474.6,1.13913]
[1758322023483,1.42408565,4474.7,4474.6,1.33343]
[1758322023686,1.42433196,4474.7,4474.6,1.33343]
[1758322024183,1.42433196,4474.7,4474.6,1.01433]
[1758322024581,0.99783196,4474.7,4474.6,1.33343]
[1758322024783,0.21523192,4474.7,4474.6,1.55690999]
[1758322025684,0.21523192,4474.7,4474.6,1.33343]
[1758322026183,0.73003192,4474.7,4474.6,1.33343]
[1758322026683,0.53233192,4474.7,4474.6,1.10943]
[1758322026883,0.53233192,4474.7,4474.6,1.33343]
[1758322029686,0.53233192,4474.7,4474.6,1.10943]
[1758322029879,0.53233192,4474.7,4474.6,1.33343]
[1758322030188,0.21523192,4474.7,4474.6,1.33343]
[1758322033079,0.21523192,4474.7,4474.6,4.54123]
[1758322036691,0.53233192,4474.7,4474.6,4.54123]
[1758322038089,0.53233192,4474.7,4474.6,4.31723]
[1758322038289,0.53233192,4474.7,4474.6,4.54123]
[1758322038491,0.21523192,4474.7,4474.6,4.54123]
[1758322040895,0.8545,4476.0,4475.9,0.92562]
[1758322041095,1.33181339,4476.0,4475.9,1.14962]
[1758322041396,1.33181339,4476.0,4475.9,0.83052]
[1758322042193,1.33181339,4476.0,4475.9,1.34392]
[1758322042392,1.20651339,4476.0,4475.9,1.34392]
[1758322042898,0.7292,4476.0,4475.9,4.55172]
[1758322043097,0.3171,4476.0,4475.9,4.55172]
[1758322046003,0.5148,4476.0,4475.9,4.55172]
[1758322048102,0.8579,4476.0,4475.9,4.55172]
[1758322049304,0.7292,4476.0,4475.9,4.55172]
[1758322050102,0.1945,4476.6,4476.5,0.215]
[1758322050298,0.5082,4476.6,4476.5,0.9594]
[1758322050904,0.5082,4476.6,4476.5,4.1672]
[1758322051302,0.5082,4476.6,4476.5,4.56906]
[1758322052812,0.7198723,4476.6,4476.5,4.56906]
[1758322053411,0.9218723,4476.6,4476.5,4.24776]
[1758322054005,0.9218723,4476.6,4476.5,4.56906]
[1758322059620,0.9218723,4476.6,4476.5,4.24776]
[1758322059816,0.9218723,4476.6,4476.0,0.1161]
[1758322059817,0.1239,4476.5,4476.0,3.2078]
[1758322060022,0.7102,4476.1,4476.0,3.82471]
[1758322060209,0.9218723,4476.1,4476.0,3.2078]
[1758322060416,5.39741114,4476.1,4475.7,0.0223]
[1758322060615,0.7102,4475.8,4475.7,0.0223]
[1758322060815,1.39741114,4475.8,4475.7,0.0223]
[1758322061016,0.7102,4475.1,4475.0,0.402]
[1758322061224,0.9218723,4475.1,4475.0,0.841]
[1758322061817,0.7198723,4475.1,4475.0,1.3614]
[1758322062122,0.9218723,4475.1,4475.0,1.3614]
[1758322063623,0.9218723,4475.1,4475.0,1.1374]
[1758322063823,0.9218723,4475.1,4475.0,1.3614]
[1758322070321,0.9218723,4475.1,4475.0,0.841]
[1758322071226,0.9218723,4475.1,4475.0,0.402]
[1758322071429,0.9218723,4475.1,4475.0,0.626]
[1758322074023,0.9218723,4475.1,4475.0,0.402]
[1758322074223,0.9218723,4475.1,4475.0,0.626]
[1758322075326,0.9218723,4475.1,4475.0,1.3614]
[1758322075727,0.9218723,4475.1,4475.0,1.0401]
[1758322075927,0.9218723,4475.1,4475.0,0.841]
[1758322078026,0.3184,4475.0,4474.9,3.2078]
[1758322078225,1.0457723,4475.0,4474.9,3.4318]
[1758322079232,1.0457723,4475.0,4474.9,3.2078]
[1758322079432,1.0457723,4475.0,4474.9,3.4318]
[1758322080629,1.0457723,4475.0,4474.9,3.6276]
[1758322080828,1.0457723,4475.0,4474.9,3.9402]
[1758322081229,1.0457723,4475.0,4474.9,3.6276]
[1758322083338,1.0457723,4475.0,4474.9,3.9402]